bitfinex/quotes_BTCUSD_20250916
["timestamp","ask_amount","ask_price","bid_price","bid_amount"]
[1758016541061,1.05361304,115680.0,115670.0,0.00200001]
[1758016543770,0.90961436,115680.0,115670.0,0.00200001]
[1758016544003,1.05361436,115680.0,115670.0,0.00200001]
[1758016545907,1.0926546,115680.0,115670.0,0.00200001]
[1758016549327,1.09265994,115680.0,115670.0,0.00200001]
[1758016550807,1.44547741,115680.0,115670.0,0.00200001]
[1758016551293,1.42929364,115680.0,115670.0,0.00200001]
[1758016551503,1.44547735,115680.0,115670.0,0.00200001]
[1758016553217,1.4454773,115680.0,115670.0,0.00200001]
[1758016554180,1.09265983,115680.0,115670.0,0.00200001]
[1758016556790,1.4454773,115680.0,115670.0,0.00200001]
[1758016558245,1.09265983,115680.0,115670.0,0.00200001]
[1758016558906,0.92114983,115680.0,115670.0,0.00395001]
[1758016559115,1.06510983,115680.0,115670.0,0.00395001]
[1758016559344,1.08940983,115680.0,115670.0,0.00395001]
[1758016559751,1.09247983,115680.0,115670.0,0.00200001]
[1758016559959,0.73966236,115680.0,115670.0,0.00200001]
[1758016560166,1.09247983,115680.0,115670.0,0.00200001]
[1758016563220,0.94851983,115680.0,115670.0,0.00200001]
[1758016568156,1.3013373,115680.0,115670.0,0.00200001]
[1758016571834,1.4452973,115680.0,115670.0,0.00200001]
[1758016574782,1.42911364,115680.0,115670.0,0.00200001]
[1758016575018,1.44529747,115680.0,115670.0,0.00200001]
[1758016579777,1.30133747,115680.0,115670.0,0.00200001]
[1758016579984,1.44529747,115680.0,115670.0,0.00200001]
[1758016581855,1.30133747,115680.0,115670.0,0.00200001]
[1758016585773,1.44525747,115680.0,115670.0,0.00200001]
[1758016591296,1.30133747,115680.0,115670.0,0.00200001]
[1758016591505,1.44525747,115680.0,115670.0,0.00200001]
[1758016594940,1.44525793,115680.0,115670.0,0.00200001]
[1758016595972,1.30133793,115680.0,115670.0,0.00200001]
[1758016596604,1.30133816,115680.0,115670.0,0.00200001]
[1758016605893,0.90935788,115680.0,115670.0,0.00200001]
[1758016606437,0.90935821,115680.0,115670.0,0.00200001]
[1758016613281,0.90935835,115680.0,115670.0,0.00200001]
[1758016615445,1.22301301,115680.0,115670.0,0.00200001]
[1758016617266,0.90935835,115680.0,115670.0,0.00200001]
[1758016624490,0.59570369,115680.0,115670.0,0.00200001]
[1758016624728,0.90935835,115680.0,115670.0,0.00200001]
[1758016625572,0.56634369,115680.0,115670.0,0.00396001]
[1758016625800,0.87999835,115680.0,115670.0,0.00396001]
[1758016626024,0.90504835,115680.0,115670.0,0.00396001]
[1758016626282,0.90819835,115680.0,115670.0,0.00200001]
[1758016626749,0.90819835,115680.0,115670.0,0.00396001]
[1758016627719,0.90819835,115680.0,115670.0,0.00200001]
[1758016630173,0.90819713,115680.0,115670.0,0.00200001]
[1758016631411,1.22185179,115680.0,115670.0,0.00200001]
[1758016633559,1.36573179,115680.0,115670.0,0.00200001]
[1758016639555,1.22185179,115680.0,115670.0,0.00200001]
[1758016641122,0.90819713,115680.0,115670.0,0.00200001]
[1758016643625,1.05207713,115680.0,115670.0,0.00200001]
[1758016645577,0.90819713,115680.0,115670.0,0.00200001]
[1758016645779,0.90820467,115680.0,115670.0,0.00200001]
[1758016647967,0.56635001,115680.0,115670.0,0.19620624]
[1758016648180,0.86381336,115680.0,115670.0,0.17891568]
[1758016648541,0.86381336,115680.0,115670.0,0.17686568]
[1758016649118,0.86381336,115680.0,115670.0,0.17586568]
[1758016649336,0.86395336,115680.0,115670.0,0.17486568]
[1758016649554,0.88807336,115680.0,115670.0,0.17486568]
[1758016649768,0.88907336,115680.0,115670.0,0.17686568]
[1758016651390,0.86495336,115680.0,115670.0,0.17686568]
[1758016651613,0.88907336,115680.0,115670.0,0.17686568]
[1758016652467,0.86495336,115680.0,115670.0,0.17686568]
[1758016652907,0.88907336,115680.0,115670.0,0.17686568]
[1758016653335,0.86817336,115680.0,115670.0,0.17686568]
[1758016653470,0.86495336,115680.0,115670.0,0.17686568]
[1758016653845,0.88907336,115680.0,115670.0,0.17686568]
[1758016654046,0.89229336,115680.0,115670.0,0.17686568]
[1758016654491,0.89229336,115680.0,115670.0,0.00396001]
[1758016655093,0.89229336,115680.0,115670.0,0.17686568]
[1758016657210,0.89229336,115680.0,115670.0,0.00396001]
[1758016657669,0.89229336,115680.0,115670.0,0.00200001]
[1758016659264,0.89229336,115680.0,115670.0,0.14584001]
[1758016661808,0.89229336,115680.0,115670.0,0.31874568]
[1758016663238,0.89229336,115680.0,115670.0,0.14584001]
[1758016663439,0.89229336,115680.0,115670.0,0.00200001]
[1758016667206,0.90848412,115680.0,115670.0,0.00200001]
[1758016667933,1.30052814,115680.0,115670.0,0.00200001]
[1758016669345,0.59482946,115680.0,115670.0,0.17490568]
[1758016669562,1.30052814,115680.0,115670.0,0.17490568]
[1758016669797,1.28433738,115680.0,115670.0,0.00200001]
[1758016680399,0.90414804,115680.0,115670.0,0.17704568]
[1758016681066,0.92735804,115680.0,115670.0,0.17704568]
[1758016681391,0.5745087,115680.0,115670.0,0.17704568]
[1758016681613,0.93041804,115680.0,115670.0,0.17704568]
[1758016688840,0.93041804,115680.0,115670.0,0.17490568]
[1758016690280,0.5775687,115680.0,115670.0,0.17490568]
[1758016690481,0.93041804,115680.0,115670.0,0.17490568]
[1758016690816,0.93041804,115680.0,115670.0,0.17704568]
[1758016691588,0.93041804,115680.0,115670.0,0.17490568]
[1758016691990,0.75752731,115680.0,115670.0,0.17490568]
[1758016692877,0.37626797,115680.0,115670.0,0.17704568]
[1758016693103,0.72911731,115680.0,115670.0,0.18109568]
[1758016693310,0.72911731,115680.0,115670.0,0.17704568]
[1758016693748,0.37626797,115680.0,115670.0,0.17704568]
[1758016694086,0.72911731,115680.0,115670.0,0.17704568]
[1758016696332,0.75232731,115680.0,115670.0,0.17704568]
[1758016696799,0.75437731,115680.0,115670.0,0.17704568]
[1758016701703,0.75743731,115680.0,115670.0,0.17704568]
[1758016703067,0.75743731,115680.0,115670.0,0.17490568]
[1758016703294,1.28317738,115680.0,115670.0,0.17490568]
[1758016703726,1.28317738,115680.0,115670.0,0.31866568]
[1758016716382,1.28317738,115680.0,115670.0,0.14576001]
[1758016716601,1.28317738,115680.0,115670.0,0.31866568]
[1758016720180,1.28317738,115680.0,115670.0,0.00200001]
[1758016720403,1.28317738,115680.0,115670.0,0.14572001]
[1758016720601,1.28317738,115680.0,115670.0,0.31862568]
[1758016720819,1.28317738,115680.0,115670.0,0.14572001]
[1758016721220,1.28317738,115680.0,115670.0,0.31862568]
[1758016721862,1.28317738,115680.0,115670.0,0.14572001]
[1758016722829,1.28317738,115680.0,115670.0,0.31862568]
[1758016723027,1.28317738,115680.0,115670.0,0.14572001]
[1758016723229,0.5774787,115680.0,115670.0,0.31862568]
[1758016723614,0.93032804,115680.0,115670.0,0.31862568]
[1758016727880,0.89108529,115680.0,115670.0,0.31862568]
[1758016732346,0.5774787,115680.0,115670.0,0.31862568]
[1758016734375,0.5542687,115680.0,115670.0,0.31862568]
[1758016734591,0.5782887,115680.0,115670.0,0.31862568]
[1758016736992,0.5782887,115680.0,115670.0,0.14572001]
[1758016741149,0.5782887,115680.0,115670.0,0.31862568]
[1758016744193,0.5782887,115680.0,115670.0,0.14572001]
[1758016744766,0.5782887,115680.0,115670.0,0.31862568]
[1758016749249,1.20550188,115680.0,115670.0,0.31862568]
[1758016759959,0.89189529,115680.0,115670.0,0.31862568]
[1758016760890,0.89189529,115680.0,115670.0,0.14572001]
[1758016763452,0.89189529,115680.0,115670.0,0.31862568]
[1758016764740,0.5782887,115680.0,115670.0,0.31862568]
[1758016765163,0.89189529,115680.0,115670.0,0.31862568]
[1758016767034,0.89189529,115680.0,115670.0,0.14572001]
[1758016768498,0.89189529,115680.0,115670.0,0.31862568]
[1758016768865,1.20550188,115680.0,115670.0,0.31862568]
[1758016771033,1.20550188,115680.0,115670.0,0.14572001]
[1758016779749,1.20550188,115680.0,115670.0,0.31862568]
[1758016780154,1.20550188,115680.0,115670.0,0.14572001]
[1758016787426,1.20550188,115680.0,115670.0,0.00200001]
[1758016787627,1.20550188,115680.0,115670.0,0.14564001]
[1758016789814,1.28401046,115680.0,115670.0,0.14564001]
[1758016800550,0.5782887,115680.0,115670.0,0.14564001]
[1758016800777,1.28401046,115680.0,115670.0,0.14564001]
[1758016801629,0.5782887,115680.0,115670.0,0.14564001]
[1758016801840,1.28401046,115680.0,115670.0,0.14564001]
[1758016804829,1.28401046,115680.0,115670.0,0.31854568]
[1758016805405,1.25999046,115680.0,115670.0,0.31854568]
[1758016805646,1.25693046,115680.0,115670.0,0.32067568]
[1758016806164,1.28254046,115680.0,115670.0,0.32067568]
[1758016806788,1.25488046,115680.0,115670.0,0.32067568]
[1758016807054,0.90201958,115680.0,115670.0,0.32067568]
[1758016807253,1.25488046,115680.0,115670.0,0.32272568]
[1758016807666,1.25488046,115680.0,115670.0,0.32067568]
[1758016811956,1.08198973,115680.0,115670.0,0.32067568]
[1758016812702,1.25488046,115680.0,115670.0,0.32067568]
[1758016813136,1.08198973,115680.0,115670.0,0.32067568]
[1758016813766,1.08198973,115680.0,115670.0,0.32272568]
[1758016814140,0.38912885,115680.0,115670.0,0.32272568]
[1758016814358,0.74198973,115680.0,115670.0,0.32472568]
[1758016814967,0.37626797,115680.0,115670.0,0.32472568]
[1758016815169,0.72812885,115680.0,115670.0,0.32272568]
[1758016815571,0.72912885,115680.0,115670.0,0.18008568]
[1758016815803,1.08198973,115680.0,115670.0,0.32368568]
[1758016816585,0.72912885,115680.0,115670.0,0.17803568]
[1758016816786,0.72912885,115680.0,115670.0,0.32263568]
[1758016817001,1.08198973,115680.0,115670.0,0.32263568]
[1758016823783,1.08198973,115680.0,115670.0,0.17903568]
[1758016824270,1.08198973,115680.0,115670.0,0.32263568]
[1758016824478,1.10452973,115680.0,115670.0,0.32263568]
[1758016824662,0.39880797,115680.0,115670.0,0.32263568]
[1758016824792,0.75166885,115680.0,115670.0,0.32263568]
[1758016825832,0.75375885,115680.0,115670.0,0.32263568]
[1758016827322,0.75375885,115680.0,115670.0,0.17903568]
[1758016827465,1.10968973,115680.0,115670.0,0.32263568]
[1758016830464,1.28258046,115680.0,115670.0,0.17690568]
[1758016830672,1.28258046,115680.0,115670.0,0.32050568]
[1758016835496,1.28258046,115680.0,115670.0,0.17690568]
[1758016835707,1.28258046,115680.0,115670.0,0.32050568]
[1758016839704,1.28258046,115680.0,115670.0,0.17690568]
[1758016839911,1.28258046,115680.0,115670.0,0.32046568]
[1758016851602,1.28481046,115680.0,115670.0,0.32046568]
[1758016851912,0.89270166,115680.0,115670.0,0.32046568]
[1758016852644,0.71981093,115680.0,115670.0,0.32046568]
[1758016853219,0.89270166,115680.0,115670.0,0.32046568]
[1758016859118,0.71981093,115680.0,115670.0,0.32046568]
[1758016859558,0.89270166,115680.0,115670.0,0.32046568]
[1758016860458,0.71981093,115680.0,115670.0,0.32046568]
[1758016860881,0.89270166,115680.0,115670.0,0.32046568]
[1758016864277,0.89270166,115680.0,115670.0,0.00400001]
[1758016864449,0.89270166,115680.0,115670.0,0.32046568]
[1758016865937,1.20631462,115680.0,115670.0,0.14756001]
[1758016866378,1.20631462,115680.0,115670.0,0.32046568]
[1758016868153,1.20631462,115680.0,115670.0,0.00400001]
[1758016868358,1.20631462,115680.0,115670.0,0.14752001]
[1758016868571,1.20631462,115680.0,115670.0,0.00400001]
[1758016868804,1.36601511,115680.0,115670.0,0.00400001]
[1758016868991,1.3982505,115680.0,115670.0,0.00400001]
[1758016869211,1.37208267,115680.0,115670.0,0.00400001]
[1758016869988,1.22856267,115680.0,115670.0,0.00400001]
[1758016870214,1.36601511,115680.0,115670.0,0.00400001]
[1758016871750,1.22249511,115680.0,115670.0,0.00400001]
[1758016871966,1.36601511,115680.0,115670.0,0.00400001]
[1758016872871,1.36605511,115680.0,115670.0,0.00400001]
[1758016873309,1.34987462,115680.0,115670.0,0.00400001]
[1758016879379,1.20631462,115680.0,115670.0,0.00400001]
[1758016879623,1.34987462,115680.0,115670.0,0.00400001]
[1758016881283,1.20631462,115680.0,115670.0,0.00400001]
[1758016881658,1.34987462,115680.0,115670.0,0.00400001]
[1758016882672,1.36601579,115680.0,115670.0,0.00400001]
[1758016885364,1.22245579,115680.0,115670.0,0.00400001]
[1758016885569,1.36601579,115680.0,115670.0,0.00400001]
[1758016894300,1.37207478,115680.0,115670.0,0.00400001]
[1758016895407,1.37207659,115680.0,115670.0,0.00400001]
[1758016896029,1.3720767,115680.0,115670.0,0.00400001]
[1758016896177,1.37209796,115680.0,115670.0,0.00400001]
[1758016902977,1.34987462,115680.0,115670.0,0.00400001]
[1758016903183,1.37212124,115680.0,115670.0,0.00400001]
[1758016904934,1.34987462,115680.0,115670.0,0.00400001]
[1758016905141,1.35594202,115680.0,115670.0,0.00400001]
[1758016906265,1.34987462,115680.0,115670.0,0.00400001]
[1758016906559,1.37212238,115680.0,115670.0,0.00400001]
[1758016907366,1.36605481,115680.0,115670.0,0.00400001]
[1758016907560,1.36605511,115680.0,115670.0,0.00400001]
[1758016907781,1.37212279,115680.0,115670.0,0.00400001]
[1758016910169,1.37212325,115680.0,115670.0,0.00400001]
[1758016910632,1.37208325,115680.0,115670.0,0.00400001]
[1758016911790,1.37208406,115680.0,115670.0,0.00400001]
[1758016913892,1.450754,115680.0,115670.0,0.00400001]
[1758016918610,1.45075635,115680.0,115670.0,0.00400001]
[1758016920033,1.80370428,115680.0,115670.0,0.00400001]
[1758016924823,1.83385618,115680.0,115670.0,0.00400001]
[1758016925789,1.83385618,115680.0,115670.0,0.00300001]
[1758016926003,1.83285618,115680.0,115670.0,1e-08]
[1758016926214,1.68933618,115680.0,115670.0,0.00200001]
[1758016926425,1.83385618,115680.0,115670.0,0.00300001]
[1758016930127,1.83385571,115680.0,115670.0,0.00300001]
[1758016930352,1.69033571,115680.0,115670.0,0.00300001]
[1758016930801,1.83385571,115680.0,115670.0,0.00300001]
[1758016940338,1.83385209,115680.0,115670.0,0.00300001]
[1758016940806,1.8338518,115680.0,115670.0,0.00300001]
[1758016942344,1.81766897,115680.0,115670.0,0.00300001]
[1758016942577,1.83383973,115680.0,115670.0,0.00300001]
[1758016946437,1.69031973,115680.0,115670.0,0.00300001]
[1758016946687,1.83383973,115680.0,115670.0,0.00300001]
[1758016949857,1.83384147,115680.0,115670.0,0.00300001]
[1758016950827,1.83384176,115680.0,115670.0,0.00300001]
[1758016953724,1.83384267,115680.0,115670.0,0.00300001]
[1758016955386,1.83384267,115680.0,115670.0,1e-08]
[1758016955586,1.85994188,115680.0,115670.0,1e-08]
[1758016955955,0.54305757,115670.0,115660.0,0.00016001]
[1758016956202,1.41471171,115670.0,115660.0,0.00016001]
[1758016956377,1.44392171,115670.0,115660.0,0.00016001]
[1758016956557,1.4699205,115670.0,115660.0,0.00016001]
[1758016959059,1.4729205,115670.0,115660.0,0.00116001]
[1758016959230,1.4749205,115670.0,115660.0,0.00116001]
[1758016960391,1.47491919,115670.0,115660.0,0.00116001]
[1758016966262,1.45268222,115670.0,115660.0,0.00116001]
[1758016966490,1.47491313,115670.0,115660.0,0.00116001]
[1758016975910,1.08282647,115670.0,115660.0,0.00116001]
[1758016978657,1.08282647,115670.0,115660.0,1e-08]
[1758016978658,1.42273488,115670.0,115660.0,1e-08]
[1758016979782,1.42272606,115670.0,115660.0,1e-08]
[1758016980498,0.17295053,115640.0,115630.0,0.0002]
[1758016980678,1.33646292,115640.0,115630.0,0.0002]
[1758016980913,1.33844292,115640.0,115630.0,0.0002]
[1758016981133,1.34154292,115640.0,115630.0,0.0002]
[1758016981354,1.14058389,115630.0,115620.0,0.0002]
[1758016981597,0.99327678,115630.0,115620.0,0.0002]
[1758016981805,1.02312847,115630.0,115620.0,0.0002]
[1758016982188,1.02322847,115630.0,115620.0,0.0002]
[1758016982618,1.04923838,115630.0,115620.0,0.0002]
[1758016984559,1.05123838,115630.0,115620.0,0.0012]
[1758016985026,1.05223838,115630.0,115620.0,0.0012]
[1758016986103,1.05223838,115630.0,115620.0,0.00327]
[1758016986104,0.56476918,115630.0,115620.0,0.00327]
[1758016986310,0.56476918,115630.0,115620.0,0.00732]
[1758016986495,0.85635629,115630.0,115620.0,0.00732]
[1758016986694,0.85635629,115630.0,115620.0,0.00527]
[1758016986695,0.88650819,115630.0,115620.0,0.00527]
[1758016986934,0.88650819,115630.0,115620.0,0.00327]
[1758016987511,0.82678965,115620.0,115610.0,0.14439522]
[1758016988062,0.00357169,115630.0,115620.0,0.17298045]
[1758016988376,0.00357169,115630.0,115620.0,0.31934045]
[1758016988713,0.00357169,115630.0,115620.0,0.63314965]
[1758016988714,0.00057169,115630.0,115620.0,0.63314965]
[1758016988925,0.00057169,115630.0,115620.0,0.31934045]
[1758016989200,0.02657134,115630.0,115620.0,0.31834045]
[1758016989747,0.02657134,115630.0,115620.0,0.48778965]
[1758016989960,0.02657134,115630.0,115620.0,0.63214965]
[1758016990170,0.02657134,115630.0,115620.0,0.17398045]
[1758016990426,0.02657134,115630.0,115620.0,0.31734045]
[1758016990645,0.02657134,115630.0,115620.0,0.17298045]
[1758016991083,0.02857134,115630.0,115620.0,0.32334045]
[1758016991527,0.02857134,115630.0,115620.0,0.32634045]
[1758016991734,0.02857134,115630.0,115620.0,0.18198045]
[1758016991920,0.02857134,115630.0,115620.0,0.32334045]
[1758016992110,0.02857134,115630.0,115620.0,0.17898045]
[1758016992330,0.02857134,115630.0,115620.0,0.32334045]
[1758016992545,0.02857134,115630.0,115620.0,0.32734045]
[1758016993600,0.02857134,115630.0,115620.0,0.18298045]
[1758016993812,0.02857134,115630.0,115620.0,0.32734045]
[1758016994064,0.02857134,115630.0,115620.0,0.32730045]
[1758016994483,0.02857134,115630.0,115620.0,0.18298045]
[1758016994715,0.02857134,115630.0,115620.0,0.32730045]
[1758016995545,0.02857134,115630.0,115620.0,0.18298045]
[1758016996015,0.02857134,115630.0,115620.0,0.32726045]
[1758016998263,0.02857134,115630.0,115620.0,0.18298045]
[1758016998478,0.02857134,115630.0,115620.0,0.32726045]
[1758016999541,0.02857134,115630.0,115620.0,0.18298045]
[1758016999733,0.02857134,115630.0,115620.0,0.32722045]
[1758017000912,0.02857134,115630.0,115620.0,0.72722045]
[1758017001973,0.02857134,115630.0,115620.0,0.72518045]
[1758017002151,0.02857134,115630.0,115620.0,0.72718045]
[1758017003781,0.02857134,115630.0,115620.0,0.32718045]
[1758017004435,0.02857134,115630.0,115620.0,0.72718045]
[1758017005720,0.02857134,115630.0,115620.0,0.58298045]
[1758017005918,0.02857134,115630.0,115620.0,0.58098045]
[1758017006050,0.02857134,115630.0,115620.0,0.72518045]
[1758017006272,0.02857134,115630.0,115620.0,0.32518045]
[1758017006475,0.02857134,115630.0,115620.0,0.32718045]
[1758017008905,0.02857134,115630.0,115620.0,0.32518045]
[1758017009605,0.02857134,115630.0,115620.0,0.24746045]
[1758017009814,0.02857134,115630.0,115620.0,0.39162045]
[1758017010015,0.02857134,115630.0,115620.0,0.24746045]
[1758017010229,0.02857134,115630.0,115620.0,0.39162045]
[1758017010856,0.02857134,115630.0,115620.0,0.39362045]
[1758017011063,0.02857134,115630.0,115620.0,0.18298045]
[1758017011263,0.02857134,115630.0,115620.0,0.39362045]
[1758017012257,0.02857134,115630.0,115620.0,0.18298045]
[1758017012455,0.02857134,115630.0,115620.0,0.24946045]
[1758017012665,0.02857134,115630.0,115620.0,0.39358045]
[1758017015353,0.02857134,115630.0,115620.0,0.18298045]
[1758017015600,0.02857134,115630.0,115620.0,0.39358045]
[1758017016038,0.02857134,115630.0,115620.0,0.18298045]
[1758017016223,0.02857134,115630.0,115620.0,0.39358045]
[1758017016441,0.02857134,115630.0,115620.0,0.70738965]
[1758017017045,0.02857134,115630.0,115620.0,0.49678965]
[1758017017758,0.02857134,115630.0,115620.0,0.56326965]
[1758017018114,0.02857134,115630.0,115620.0,0.70734965]
[1758017018725,0.02857134,115630.0,115620.0,0.49678965]
[1758017018964,0.02857134,115630.0,115620.0,0.56326965]
[1758017020063,0.02857134,115630.0,115620.0,0.70730965]
[1758017025429,0.02857134,115630.0,115620.0,0.39350045]
[1758017026918,0.02857134,115630.0,115620.0,0.70530965]
[1758017027159,0.02857134,115630.0,115620.0,0.70730965]
[1758017030506,0.02857134,115630.0,115620.0,1.10722965]
[1758017032039,0.02857134,115630.0,115620.0,0.70722965]
[1758017033096,0.02857134,115630.0,115620.0,0.56326965]
[1758017033242,0.02857134,115630.0,115620.0,0.70722965]
[1758017034645,0.02857134,115630.0,115620.0,0.56326965]
[1758017034884,0.02857134,115630.0,115620.0,0.70718965]
[1758017035702,0.00257169,115630.0,115620.0,0.70718965]
[1758017035932,0.00257169,115630.0,115620.0,0.56326965]
[1758017036143,0.00257169,115630.0,115620.0,1.10718965]
[1758017036966,0.00257169,115630.0,115620.0,0.96326965]
[1758017037816,0.00257169,115630.0,115620.0,1.35528869]
[1758017038027,0.00257169,115630.0,115620.0,1.14629457]
[1758017038438,0.00257169,115630.0,115620.0,0.79138045]
[1758017038622,0.00257169,115630.0,115620.0,1.62936059]
[1758017038833,0.00247169,115630.0,115620.0,1.62936059]
[1758017039458,0.00257169,115630.0,115620.0,1.62936059]
[1758017039656,0.00257169,115630.0,115620.0,1.62536059]
[1758017039886,0.0001,115640.0,115620.0,1.62536059]
[1758017039887,0.0001,115640.0,115630.0,0.30311739]
[1758017040070,0.0001,115650.0,115640.0,0.22295053]
[1758017040325,0.0001,115650.0,115640.0,0.52786465]
[1758017040533,0.0001,115650.0,115640.0,0.67178465]
[1758017040926,0.0242,115660.0,115650.0,0.17293558]
[1758017041296,0.02745,115660.0,115650.0,0.7362497]
[1758017041505,0.02953,115660.0,115650.0,0.7362497]
[1758017042287,0.02953,115660.0,115650.0,0.23941558]
[1758017042729,0.02953,115660.0,115650.0,0.38329558]
[1758017042945,0.02953,115660.0,115650.0,0.7362097]
[1758017043572,0.02953,115660.0,115650.0,0.7372097]
[1758017044230,0.0011,115660.0,115650.0,0.7422097]
[1758017045947,0.0011,115660.0,115650.0,0.5983297]
[1758017046172,0.0011,115660.0,115650.0,0.7422097]
[1758017047811,0.0011,115660.0,115650.0,0.38925558]
[1758017048016,0.00318,115660.0,115650.0,0.7421697]
[1758017048279,0.03053,115660.0,115650.0,0.7421697]
[1758017048645,0.03053,115660.0,115650.0,0.38925558]
[1758017048826,0.03053,115660.0,115650.0,0.7421697]
[1758017050836,0.0011,115660.0,115650.0,0.7421697]
[1758017051256,0.0011,115660.0,115650.0,0.7421297]
[1758017051497,0.00318,115660.0,115650.0,0.7421297]
[1758017051946,0.00318,115660.0,115650.0,0.5983297]
[1758017052119,0.03053,115660.0,115650.0,0.7421297]
[1758017057403,0.03053,115660.0,115650.0,0.38921558]
[1758017057630,0.03053,115660.0,115650.0,0.7421297]
[1758017059182,0.0011,115660.0,115650.0,0.7421297]
[1758017060668,0.0011,115660.0,115650.0,0.7441297]
[1758017061017,0.0011,115660.0,115650.0,0.7421297]
[1758017062000,0.0011,115660.0,115650.0,1.09504382]
[1758017062218,0.0011,115660.0,115650.0,1.09704382]
[1758017062855,0.0011,115660.0,115650.0,0.7441297]
[1758017063883,0.0011,115660.0,115650.0,0.7421297]
[1758017065970,0.0011,115660.0,115650.0,0.7441297]
[1758017067169,0.0011,115660.0,115650.0,1.09704382]
[1758017067627,0.0001,115670.0,115660.0,0.17292062]
[1758017067854,0.0001,115680.0,115670.0,1.00888581]
[1758017068076,0.0001,115680.0,115670.0,0.72173979]
[1758017068717,0.02735,115700.0,115680.0,0.17289073]
[1758017068931,0.02735,115700.0,115690.0,0.7361899]
[1758017069121,0.02943,115700.0,115690.0,0.7361899]
[1758017069335,0.00208,115700.0,115690.0,0.7361899]
[1758017069540,0.02914,115700.0,115690.0,0.23935578]
[1758017069748,0.0378972,115700.0,115690.0,0.38327578]
[1758017070119,0.0378972,115700.0,115690.0,0.23935578]
[1758017070335,0.0118372,115700.0,115690.0,0.38827578]
[1758017070547,0.00308,115700.0,115690.0,0.38827578]
[1758017070750,0.00308,115700.0,115690.0,0.7411899]
[1758017071380,0.00308,115700.0,115690.0,0.38827578]
[1758017072032,0.35914412,115700.0,115690.0,0.38827578]
[1758017072207,0.38305412,115700.0,115690.0,0.24435578]
[1758017072387,0.38305412,115700.0,115690.0,0.38827578]
[1758017072770,0.38305412,115700.0,115690.0,0.39027578]
[1758017073187,0.38305412,115700.0,115690.0,0.4567005]
[1758017074051,0.39174972,115700.0,115690.0,0.4567005]
[1758017074556,0.39174972,115700.0,115690.0,0.4568005]
[1758017076260,0.0388356,115700.0,115690.0,0.4567605]
[1758017076900,0.0388356,115700.0,115690.0,0.3128805]
[1758017077104,0.0388356,115700.0,115690.0,0.4567605]
[1758017078554,0.39174972,115700.0,115690.0,0.4567605]
[1758017078972,0.0388356,115700.0,115690.0,0.4567605]
[1758017081484,0.39174972,115700.0,115690.0,0.4567605]
[1758017081907,0.0388356,115700.0,115690.0,0.4567605]
[1758017083758,0.39174972,115700.0,115690.0,0.4567605]
[1758017083963,0.0388356,115700.0,115690.0,0.4567605]
[1758017084698,0.0388356,115700.0,115690.0,0.80967462]
[1758017084895,0.0149256,115700.0,115690.0,0.80967462]
[1758017085095,0.0117756,115700.0,115690.0,0.80967462]
[1758017085271,0.39174972,115700.0,115690.0,0.4566805]
[1758017087369,0.0388356,115700.0,115690.0,0.4566805]
[1758017087671,0.39174972,115700.0,115690.0,0.4566805]
[1758017090109,0.0388356,115700.0,115690.0,0.4566805]
[1758017090340,0.39174972,115700.0,115690.0,0.4566805]
[1758017094429,0.0388356,115700.0,115690.0,0.4566805]
[1758017094844,0.39174972,115700.0,115690.0,0.4566805]
[1758017095775,0.0388356,115700.0,115690.0,0.4566805]
[1758017095978,0.39174972,115700.0,115690.0,0.4566805]
[1758017097777,0.0388356,115700.0,115690.0,0.4566805]
[1758017098724,0.86561895,115700.0,115690.0,0.07352472]
[1758017098886,0.88786493,115700.0,115690.0,0.0071]
[1758017099134,0.89057019,115700.0,115690.0,0.07354]
[1758017099345,0.89057019,115700.0,115690.0,0.2173]
[1758017099346,0.88786493,115700.0,115690.0,0.2173]
[1758017099558,0.88786493,115700.0,115690.0,0.07029]
[1758017099769,0.91655728,115700.0,115690.0,0.21405]
[1758017099972,0.91655728,115700.0,115690.0,0.21195]
[1758017100440,1.2272644,115700.0,115690.0,0.2102]
[1758017100617,0.91485189,115700.0,115690.0,0.2102]
[1758017101095,0.91495189,115700.0,115690.0,0.2102]
[1758017101392,0.91395189,115700.0,115690.0,0.2102]
[1758017102323,0.91393759,115700.0,115690.0,0.2102]
[1758017103133,0.91393759,115700.0,115690.0,0.21024]
[1758017105419,0.90788485,115700.0,115690.0,0.21024]
[1758017106235,0.90783173,115700.0,115690.0,0.06644]
[1758017106486,0.90783173,115700.0,115690.0,0.21024]
[1758017109336,0.89170591,115700.0,115690.0,0.21024]
[1758017109961,0.5782934,115700.0,115690.0,0.21024]
[1758017110179,0.88812591,115700.0,115690.0,0.21024]
[1758017110403,0.89137591,115700.0,115690.0,0.21024]
[1758017110624,0.86205591,115700.0,115690.0,0.38525578]
[1758017110841,0.86205591,115700.0,115690.0,0.38847578]
[1758017111060,0.68919507,115700.0,115690.0,0.38847578]
[1758017111266,0.03468256,115700.0,115690.0,0.39047578]
[1758017111473,0.34809507,115700.0,115690.0,0.39047578]
[1758017111717,0.3506956,115700.0,115690.0,0.39147578]
[1758017111939,0.66410811,115700.0,115690.0,0.39147578]
[1758017112130,0.66210811,115700.0,115690.0,0.39047578]
[1758017112535,0.66210811,115700.0,115690.0,0.39157578]
[1758017112844,0.66210811,115700.0,115690.0,0.39057578]
[1758017113049,0.3486956,115700.0,115690.0,0.39057578]
[1758017113255,0.3486956,115700.0,115690.0,0.39257578]
[1758017113256,0.3496956,115700.0,115690.0,0.39257578]
[1758017114510,0.3496956,115700.0,115690.0,0.39357578]
[1758017115118,0.3496956,115700.0,115690.0,0.39257578]
[1758017115515,0.0096956,115700.0,115690.0,0.39457578]
[1758017115785,0.0096956,115700.0,115690.0,0.46039699]
[1758017117189,0.001,115700.0,115690.0,0.46091699]
[1758017118767,0.001,115700.0,115690.0,0.86091699]
[1758017121502,0.001,115700.0,115690.0,0.86095699]
[1758017121743,0.001,115700.0,115690.0,0.71659699]
[1758017121987,0.001,115700.0,115690.0,0.86095699]
[1758017128203,0.001,115700.0,115690.0,0.71659699]
[1758017128406,0.001,115700.0,115690.0,0.86087699]
[1758017129234,0.001,115700.0,115690.0,0.71659699]
[1758017129454,0.001,115700.0,115690.0,0.86087699]
[1758017130332,0.001,115700.0,115690.0,0.71659699]
[1758017130560,0.34313251,115700.0,115690.0,0.31137699]
[1758017130785,0.51599335,115700.0,115690.0,0.45351699]
[1758017131047,0.34313251,115700.0,115690.0,0.45351699]
[1758017131276,0.34313251,115700.0,115690.0,0.45548699]
[1758017131509,0.001,115700.0,115690.0,0.7718395]
[1758017131725,0.001,115700.0,115690.0,0.7738395]
[1758017133020,0.001,115700.0,115690.0,0.46042699]
[1758017134763,0.001,115700.0,115690.0,0.86042699]
[1758017137164,0.001,115700.0,115690.0,1.2539914]
[1758017138508,0.001,115700.0,115690.0,1.1097114]
[1758017138724,0.001,115700.0,115690.0,0.94053889]
[1758017141325,0.001,115700.0,115690.0,0.79629889]
[1758017141554,0.001,115700.0,115690.0,0.94049889]
[1758017142899,0.001,115700.0,115690.0,0.79629889]
[1758017143136,0.001,115700.0,115690.0,0.71120699]